bitfinex-derivatives/quotes_ETHF0:USTF0_20250212
["timestamp","ask_amount","ask_price","bid_price","bid_amount"]
[1739362136982,0.0056751,2629.5,2629.4,6.16083208]
[1739362142876,1.1665,2629.9,2629.4,6.16083208]
[1739362143085,4.8608,2630.4,2629.8,4.73658441]
[1739362143288,0.5884,2630.3,2630.1,1.52878441]
[1739362143779,0.5531,2630.2,2630.1,1.52878441]
[1739362145386,0.5531,2630.2,2630.0,40.8]
[1739362147487,0.5531,2630.2,2629.9,2.08444349]
[1739362147693,0.5696,2630.1,2629.9,2.08444349]
[1739362147992,0.5696,2630.1,2629.9,42.88444349]
[1739362148491,0.5531,2630.2,2629.9,42.88444349]
[1739362155489,0.5531,2630.2,2630.0,3.41296553]
[1739362156089,0.5531,2630.2,2630.1,40.8]
[1739362156392,0.5686,2630.6,2630.1,44.0078]
[1739362156592,3.41296553,2631.2,2630.1,44.0078]
[1739362156593,0.6042,2630.8,2630.3,3.41296553]
[1739362156890,2.2562,2630.8,2630.4,4.3394]
[1739362157500,0.562,2630.7,2630.5,0.6022]
[1739362160893,0.562,2630.7,2630.6,0.1894314]
[1739362161792,0.6042,2630.8,2630.6,3.60239693]
[1739362161988,0.5701,2631.0,2630.6,3.60239693]
[1739362166193,0.5701,2631.0,2630.8,3.2078]
[1739362166497,0.5528,2631.1,2630.9,1.1734]
[1739362166791,1.1427,2631.1,2630.9,1.7686]
[1739362168300,0.5899,2631.1,2630.9,1.7686]
[1739362169701,0.5899,2631.1,2630.9,3.29502557]
[1739362170503,0.5899,2631.1,2630.9,2.09502557]
[1739362171608,0.5899,2631.1,2630.9,0.5686]
[1739362172301,0.5899,2631.1,2630.8,3.50473036]
[1739362172302,0.5899,2631.1,2630.6,0.1894314]
[1739362172499,0.5506,2631.0,2630.6,0.1894314]
[1739362172697,0.5959,2630.9,2630.6,0.1894314]
[1739362173298,0.5899,2631.1,2630.7,1.1728]
[1739362173500,0.5959,2631.2,2630.7,1.7536]
[1739362173996,0.5506,2631.1,2630.7,1.7536]
[1739362174596,0.5506,2631.1,2630.8,3.2078]
[1739362175801,1.652,2631.3,2630.8,3.2078]
[1739362176703,0.5907,2631.2,2630.8,3.2078]
[1739362177207,1.1894,2631.4,2630.9,3.4106735]
[1739362177508,1.651,2631.3,2631.0,0.5594]
[1739362177805,19.913,2632.6,2631.0,0.5594]
[1739362177806,0.30348551,2632.8,2631.2,10.029147]
[1739362178009,0.5661,2632.8,2632.4,3.4106735]
[1739362178307,3.2078,2634.0,2633.3,0.18810016]
[1739362178513,3.2078,2634.0,2633.4,3.2078]
[1739362178905,1.692,2633.9,2633.4,3.21350093]
[1739362180414,0.5514,2633.8,2633.6,3.4106735]
[1739362180710,2.2571,2634.4,2633.7,3.2078]
[1739362181008,2.2571,2634.4,2634.2,6.6184735]
[1739362183914,2.2571,2634.4,2633.9,6.6184735]
[1739362184117,1.87714492,2634.4,2633.9,6.6184735]
[1739362185311,5.08494492,2634.4,2633.9,3.4106735]
[1739362185616,5.08494492,2634.4,2633.6,3.2078]
[1739362185617,5.08494492,2634.4,2633.6,6.6184735]
[1739362187219,3.2078,2634.1,2633.6,3.2078]
[1739362187419,2.2669,2634.0,2633.6,3.2078]
[1739362198227,2.2669,2634.0,2633.4,0.00570093]
[1739362199820,3.2078,2633.8,2633.4,0.00570093]
[1739362204227,1.673,2633.7,2633.4,0.00570093]
[1739362211435,3.2078,2633.8,2633.4,0.59830093]
[1739362211734,1.668,2633.8,2633.6,3.2078]
[1739362211932,1.668,2633.9,2633.6,3.2078]
[1739362212234,3.2078,2634.2,2633.7,41.394]
[1739362212428,1.669,2634.1,2633.8,3.4106735]
[1739362212629,1.669,2634.1,2633.9,3.2078]
[1739362213336,1.669,2634.1,2633.9,3.1978]
[1739362215538,1.669,2634.1,2633.7,41.394]
[1739362215836,1.669,2634.1,2633.7,0.594]
[1739362216638,1.669,2634.1,2633.6,3.2078]
[1739362216835,0.5888,2634.0,2633.4,1.20300093]
[1739362217427,3.4106735,2633.7,2633.4,0.00570093]
[1739362217631,1.671,2633.6,2633.4,0.00570093]
[1739362221341,0.00523459,2633.7,2633.4,0.00570093]
[1739362221652,1.668,2633.6,2633.4,0.00570093]
[1739362222050,3.2078,2633.5,2633.4,0.00570093]
[1739362222240,3.7804,2633.5,2633.4,0.00570093]
[1739362223144,4.3708,2633.5,2633.4,0.00570093]
[1739362223545,3.7804,2633.5,2633.4,0.00570093]
[1739362226639,3.2078,2633.5,2633.4,0.00570093]
[1739362226846,4.8728,2633.5,2633.4,0.00570093]
[1739362227741,3.2078,2633.5,2633.4,0.00570093]
[1739362227940,4.8718,2633.5,2633.4,0.00570093]
[1739362236659,10.8718,2633.5,2632.9,3.2078]
[1739362236961,3.9749735,2633.4,2632.9,3.2078]
[1739362237151,0.5864,2633.3,2632.9,3.2078]
[1739362237958,0.5864,2633.3,2633.0,1.169]
[1739362242164,0.57000093,2633.4,2633.0,1.169]
[1739362248072,3.98067443,2633.4,2633.0,1.169]
[1739362248275,0.5812,2633.3,2633.0,1.169]
[1739362250472,3.4106735,2633.1,2632.9,3.2078]
[1739362250671,1.654,2633.0,2632.9,3.2078]
[1739362250868,1.654,2633.0,2632.8,0.00570093]
[1739362251069,2.2381,2633.0,2632.8,0.00570093]
[1739362252677,2.8005,2633.0,2632.8,0.00570093]
[1739362261984,8.8005,2633.0,2632.8,0.00570093]
[1739362262487,2.8005,2633.0,2632.8,0.00570093]
[1739362263179,3.3078435,2633.0,2632.8,0.00570093]
[1739362263587,2.2381,2633.0,2632.8,0.00570093]
[1739362269798,2.74507472,2633.0,2632.8,0.00570093]
[1739362270097,2.2381,2633.0,2632.8,0.00570093]
[1739362273390,2.74489466,2633.0,2632.8,0.00570093]
[1739362273891,8.74489466,2633.0,2632.8,0.00570093]
[1739362274197,3.2078,2632.8,2631.1,6.4086735]
[1739362274494,3.4106735,2632.3,2631.7,0.5583]
[1739362274688,3.2078,2631.6,2631.3,0.5572]
[1739362274888,1.651,2631.5,2631.3,0.5572]
[1739362281396,1.651,2631.5,2631.3,41.3572]
[1739362282195,1.651,2631.5,2631.3,0.5572]
[1739362285501,3.4106735,2631.4,2631.3,0.5572]
[1739362286001,1.651,2631.5,2631.3,0.5572]
[1739362290706,1.652,2631.4,2631.3,0.5572]
[1739362293309,3.2078,2631.6,2631.3,0.5572]
[1739362293500,1.652,2631.5,2631.3,0.5572]
[1739362294314,3.4106735,2631.4,2631.3,0.5572]
[1739362294812,3.4106735,2631.4,2631.2,0.5583]
[1739362295409,0.00309523,2631.4,2631.2,1.1385]
[1739362301815,3.41376873,2631.4,2631.1,0.00570093]
[1739362307009,1.652,2631.3,2631.1,0.00570093]
[1739362317140,0.00309523,2631.4,2631.2,3.2078]
[1739362317333,1.652,2631.6,2631.3,1.1311]
[1739362317532,0.00570093,2631.7,2631.4,0.5818]
[1739362317736,1.652,2631.6,2631.4,41.3818]
[1739362320734,1.652,2631.5,2631.4,41.3818]
[1739362320934,1.652,2631.5,2631.4,0.5818]
[1739362322642,0.00570093,2631.7,2631.4,0.5818]
[1739362322839,3.2078,2632.1,2631.5,3.2078]
[1739362323140,1.652,2632.2,2631.8,3.2078]
[1739362323332,1.652,2632.2,2631.9,1.6498]
[1739362327041,1.652,2632.2,2632.1,0.18689136]
[1739362331547,2.2392,2632.2,2631.8,3.2078]
[1739362331738,1.1588,2632.1,2631.5,4.3548]
[1739362332646,3.4106735,2632.0,2631.5,4.3548]
[1739362335234,4.3666,2632.1,2631.5,4.3548]
[1739362335438,1.1588,2632.1,2631.5,4.3548]
[1739362340446,4.3666,2632.1,2631.5,4.3548]
[1739362344955,4.3666,2632.1,2631.5,3.2078]
[1739362344956,3.4106735,2631.7,2631.5,3.2078]
[1739362345258,3.3543,2631.6,2631.5,3.2078]
[1739362345955,3.3543,2631.6,2631.2,0.5817]
[1739362345956,3.3543,2631.6,2631.2,3.2078]
[1739362347251,3.4106735,2631.4,2631.1,0.00570093]
[1739362363358,3.2078,2631.3,2631.1,0.00570093]
[1739362363557,1.651,2631.2,2631.1,0.00570093]
[1739362363752,2.2016,2631.2,2631.1,0.00570093]
[1739362375072,2.70955848,2631.2,2631.1,0.00570093]
[1739362378176,5.91735848,2631.2,2631.1,0.00570093]
[1739362379575,2.70955848,2631.2,2631.1,0.00570093]
[1739362379777,2.2016,2631.2,2631.1,0.00570093]
[1739362379980,5.4094,2631.2,2631.1,0.00570093]
[1739362380181,5.91735848,2631.2,2631.1,0.00570093]
[1739362383576,8.97178484,2631.2,2631.1,0.00570093]
[1739362386271,5.76398484,2631.2,2630.7,1.09150093]
[1739362386476,1.52721318,2630.8,2630.7,1.09150093]
[1739362386683,3.17821318,2630.8,2630.7,1.09150093]
[1739362388184,1.52721318,2631.2,2630.7,5.82651411]
[1739362388385,1.651,2631.1,2630.7,5.82651411]
[1739362389380,1.651,2631.1,2630.7,46.62651411]
[1739362389675,1.651,2631.1,2630.7,5.82651411]
[1739362391591,1.651,2631.1,2630.7,4.29930093]
[1739362392479,1.651,2631.0,2630.7,4.29930093]
[1739362392676,1.651,2631.0,2630.7,45.09930093]
[1739362392881,3.41079711,2631.8,2630.8,3.41079711]
[1739362393083,1.651,2631.7,2631.1,3.2078]
[1739362393282,1.651,2631.7,2631.2,1.174]
[1739362393491,3.41079711,2631.8,2631.2,1.7658]
[1739362393693,1.651,2631.7,2631.4,3.2078]
[1739362394290,0.7375,2631.7,2631.4,3.2078]
[1739362394687,19.917,2632.0,2631.4,12.61859711]
[1739362394994,1.651,2631.9,2631.7,6.61859711]
[1739362395192,1.651,2632.1,2631.8,0.5997]
[1739362395989,1.651,2632.7,2632.0,6.81305391]
[1739362396182,1.651,2632.7,2632.1,3.2078]
[1739362397395,1.65670093,2632.7,2632.1,3.21350093]
[1739362398388,1.65670093,2632.7,2632.2,0.5878]
[1739362398590,1.65670093,2632.7,2632.3,0.5726]
[1739362399797,1.65670093,2632.7,2632.4,3.2078]
[1739362401893,0.00570093,2632.7,2632.4,3.2078]
[1739362404290,0.00570093,2632.7,2632.3,44.78339711]
[1739362404490,0.00570093,2632.7,2632.6,3.2078]
[1739362405684,0.00570093,2632.7,2632.6,6.61859711]
[1739362407293,0.00570093,2632.7,2632.6,3.2078]
[1739362420501,0.00570093,2632.7,2632.3,3.98339711]
[1739362420702,0.00570093,2632.7,2632.6,3.2078]
[1739362454722,0.00570093,2632.7,2632.3,2.998]
[1739362454723,3.17824832,2632.7,2632.3,2.998]
[1739362454928,1.52454739,2632.4,2632.3,2.998]
[1739362456013,1.52454739,2632.4,2632.3,2.0847]
[1739362457828,3.40784608,2632.6,2632.3,2.0847]
[1739362458037,3.91556666,2632.6,2632.3,2.0847]
[1739362458223,0.5953,2632.5,2632.3,2.0847]
[1739362458620,0.5953,2632.5,2632.2,4.357]
[1739362459326,0.5953,2632.5,2632.2,3.2078]
[1739362459534,2.8028,2632.4,2632.2,3.2078]
[1739362466040,2.8028,2632.4,2632.1,3.21350093]
[1739362468652,0.561,2632.4,2632.1,3.21350093]
[1739362468938,0.5953,2632.5,2632.2,0.6006]
[1739362469131,2.2433,2632.5,2632.3,40.8]
[1739362469331,2.2433,2632.5,2632.4,0.5739]
[1739362469531,1.648,2632.5,2632.4,0.5739]
[1739362469736,1.648,2632.6,2632.4,0.5739]
[1739362470648,0.00570093,2632.7,2632.4,0.5739]
[1739362470939,1.648,2632.6,2632.4,0.5739]
[1739362471138,1.648,2632.6,2632.4,3.7817]
[1739362471340,1.65370093,2632.7,2632.4,3.7817]
[1739362475441,0.00570093,2632.7,2632.4,3.7817]
[1739362479545,0.00570093,2632.7,2632.5,40.8]
[1739362479849,0.00570093,2632.7,2632.6,0.5631]
[1739362480149,0.00570093,2632.7,2632.6,1.1235]
[1739362480946,1.648,2633.3,2632.6,10.53134608]
[1739362481251,1.648,2633.6,2633.1,3.2078]
[1739362481445,1.7306,2633.7,2633.4,3.2078]
[1739362481753,1.648,2633.5,2633.4,3.2078]
[1739362482150,1.648,2633.6,2633.4,3.2078]
[1739362484357,1.648,2633.6,2633.4,3.40046508]
[1739362487557,0.5999,2633.7,2633.4,3.40046508]
[1739362487752,1.648,2633.9,2633.4,3.40046508]
[1739362488055,0.5796,2633.8,2633.7,3.2078]
[1739362490258,0.5796,2633.8,2633.7,4.3243]
[1739362491951,2.2367,2634.0,2633.7,4.3243]
[1739362492159,2.8401,2634.0,2633.7,4.3243]
[1739362494261,0.5625,2633.9,2633.7,4.3243]
[1739362494757,0.5625,2633.9,2633.7,3.2078]
[1739362502663,1.1931,2634.0,2633.7,3.2078]
[1739362502860,0.6034,2634.0,2633.7,3.2078]
[1739362503064,0.6034,2634.0,2633.8,0.5627]
[1739362503268,0.6034,2634.0,2633.9,40.8]
[1739362503570,0.5984,2634.3,2633.9,40.8]
[1739362503764,1.1763,2634.3,2634.0,3.2078]
[1739362504969,1.1763,2634.3,2633.7,3.2078]
[1739362505572,3.40784608,2634.1,2633.7,3.2078]
[1739362505763,2.2447,2634.0,2633.7,3.2078]
[1739362505964,0.5871,2633.9,2633.7,3.2078]
[1739362506171,1.152,2633.9,2633.7,3.2078]
[1739362507070,0.5649,2633.9,2633.7,3.2078]
[1739362507670,1.647,2634.1,2633.8,0.5893]
[1739362507866,1.647,2634.1,2634.0,3.2078]
[1739362508062,1.1717,2634.3,2634.0,3.2078]
[1739362508269,0.5649,2634.3,2634.1,0.5523]
[1739362509374,1.1939,2634.5,2634.1,0.5523]
[1739362509569,1.647,2634.4,2634.1,0.5523]
[1739362511982,0.5626,2634.5,2634.2,0.5605]
[1739362512178,2.2096,2634.5,2634.3,0.5717]
[1739362513684,2.2096,2634.5,2634.3,3.7795]
[1739362516082,0.00283887,2634.4,2634.3,3.7795]
[1739362520888,0.00283887,2634.4,2634.3,3.2078]
[1739362521196,0.59343887,2634.4,2634.3,3.2078]
[1739362521582,1.17833887,2634.4,2634.3,3.2078]
[1739362524291,0.00283887,2634.4,2634.3,3.2078]
[1739362537000,3.7719433,2635.1,2634.3,3.2078]
[1739362537198,3.7719433,2635.1,2634.2,1.5225433]
[1739362537199,1.1191,2634.9,2634.6,3.2078]
[1739362537505,1.1191,2634.9,2634.7,40.8]
[1739362537795,2.6416433,2634.9,2634.6,3.2078]
[1739362537990,2.6416433,2634.9,2634.4,1.1552]
[1739362538192,1.5225433,2634.7,2634.4,41.9552]
[1739362538393,1.5225433,2634.5,2634.3,3.2078]
[1739362538594,1.1301,2634.4,2634.3,3.2078]
[1739362539697,2.6526433,2634.4,2634.0,3.2078]
[1739362539898,1.5225433,2634.1,2634.0,3.2078]
[1739362541599,0.5477,2634.2,2634.0,3.2078]
[1739362541802,1.05487003,2634.2,2633.7,3.2078]
[1739362541994,3.40364715,2634.0,2633.7,3.2078]
[1739362542196,2.7729,2633.9,2633.7,3.2078]
[1739362542903,0.5894,2633.8,2633.7,3.2078]
[1739362545802,0.5894,2633.8,2633.5,0.00570093]
[1739362546406,3.40364715,2633.7,2633.5,0.00570093]
[1739362549007,3.90949922,2633.7,2633.5,0.00570093]
[1739362550196,3.40364715,2633.7,2633.5,0.00570093]
[1739362551508,3.7972,2633.8,2633.5,0.00570093]
[1739362551710,1.646,2633.6,2633.5,0.57710093]
[1739362552305,1.646,2633.6,2633.5,0.00570093]
[1739362555607,3.7972,2633.8,2633.5,0.00570093]
[1739362555811,1.646,2633.7,2633.5,0.00570093]
[1739362556411,0.5894,2633.8,2633.5,0.00570093]
[1739362556610,23.29664715,2634.3,2633.5,0.00570093]
[1739362556817,1.646,2634.0,2633.6,3.40364715]
[1739362557104,1.646,2634.0,2633.7,41.3718]
[1739362557309,1.646,2634.0,2633.7,41.9217]
[1739362558713,1.646,2634.0,2633.7,1.1217]
[1739362559107,1.646,2634.0,2633.7,41.9217]
[1739362559304,1.646,2634.0,2633.7,1.1217]
[1739362560813,1.646,2634.0,2633.5,0.00570093]
[1739362560814,5.04964715,2634.0,2633.5,0.00570093]
[1739362561016,0.5886,2633.9,2633.5,0.00570093]
[1739362561215,0.5511,2633.8,2633.5,0.00570093]
[1739362561415,1.1428,2633.8,2633.5,0.00570093]
[1739362562715,0.5917,2633.8,2633.5,0.00570093]
[1739362563417,3.40364715,2634.0,2633.5,0.00570093]
[1739362563609,3.2078,2634.1,2633.5,0.00570093]
[1739362563610,1.646,2634.1,2633.7,3.2078]
[1739362563917,3.2078,2634.8,2634.0,3.2078]
[1739362564215,1.646,2634.7,2634.1,0.6009]
[1739362564419,3.801,2634.8,2634.2,0.5935]
[1739362564618,0.5932,2634.8,2634.3,3.2078]
[1739362564816,1.646,2634.7,2634.3,3.2078]
[1739362567012,0.5739,2635.1,2634.3,3.2078]
[1739362567318,1.646,2634.8,2634.3,3.2078]
[1739362568314,1.646,2634.8,2634.7,3.2078]
[1739362569317,1.646,2634.8,2634.4,3.2078]
[1739362569707,1.646,2634.8,2634.7,3.2078]
[1739362575317,0.5739,2635.1,2634.7,3.2078]
[1739362575522,1.646,2635.0,2634.7,3.2078]
[1739362575817,1.1687,2635.2,2634.8,1.1576]
[1739362576020,1.646,2635.1,2634.8,1.1576]
[1739362576218,1.646,2635.0,2634.8,1.1576]
[1739362576413,1.646,2635.0,2634.8,1.7388]
[1739362578509,20.4669,2635.3,2634.8,5.14244715]
[1739362578715,1.646,2635.3,2634.8,5.14244715]
[1739362578916,3.40364715,2635.8,2635.0,3.2078]
[1739362579115,2.2,2635.7,2635.0,3.2078]
[1739362579315,0.5643,2635.6,2635.1,0.00570093]
[1739362579517,0.5582,2635.5,2635.1,0.00570093]
[1739362580327,1.645,2635.4,2635.1,0.00570093]
[1739362580620,1.645,2635.4,2635.3,0.18696982]
[1739362583424,0.5582,2635.5,2635.3,0.18696982]
[1739362583614,1.645,2635.4,2635.3,0.18696982]
[1739362583814,1.645,2635.4,2635.3,0.77786982]
[1739362584021,1.645,2635.4,2635.3,3.98566982]
[1739362585117,1.645,2635.4,2635.3,44.78566982]
[1739362585519,3.99504715,2635.8,2635.3,44.78566982]
[1739362585721,1.645,2635.7,2635.3,44.78566982]
[1739362586922,3.99504715,2635.8,2635.3,44.78566982]
[1739362587125,1.645,2635.7,2635.3,44.78566982]
[1739362589420,0.5914,2635.8,2635.3,3.98566982]
[1739362589620,3.2078,2636.0,2635.6,3.2078]
[1739362589822,3.7906,2636.0,2635.7,0.5604]
[1739362590115,3.2078,2636.0,2635.7,1.1472]
[1739362590318,4.8528,2636.0,2635.7,1.1472]
[1739362591026,3.2078,2636.0,2635.7,1.1472]
[1739362591229,1.645,2636.0,2635.7,1.1472]
[1739362591430,1.645,2636.0,2635.7,0.5604]
[1739362592022,1.645,2636.1,2635.7,0.5604]
[1739362592226,1.645,2636.1,2635.9,3.2078]
[1739362593133,0.5669,2636.2,2635.9,3.2078]
[1739362593524,2.2119,2636.2,2635.9,3.2078]
[1739362594832,3.40364715,2636.1,2635.9,3.2078]
[1739362595030,6.61144715,2636.1,2635.4,0.29578784]
[1739362595633,6.61144715,2636.1,2635.3,0.18696982]
[1739362596240,3.40364715,2635.8,2635.3,0.18696982]
[1739362596534,2.2113,2635.7,2635.3,0.18696982]
[1739362596934,0.5921,2635.6,2635.3,0.18696982]
[1739362597429,0.5684,2635.5,2635.3,0.18696982]
[1739362599930,3.97204715,2635.5,2635.3,0.18696982]
[1739362600124,3.97204715,2635.5,2635.2,3.2078]
[1739362600940,7.17984715,2635.5,2635.1,0.00570093]
[1739362602439,1.645,2635.4,2635.1,0.00570093]
[1739362603439,1.645,2635.4,2635.1,0.20002071]
[1739362605341,3.7762,2635.5,2635.1,0.20002071]
[1739362605639,1.645,2635.4,2635.1,0.20002071]
[1739362605829,1.645,2635.4,2635.2,3.2078]
[1739362606433,2.2134,2635.5,2635.2,3.2078]
[1739362606931,0.5684,2635.5,2635.2,3.2078]
[1739362607128,1.645,2635.5,2635.2,3.2078]
[1739362607336,1.645,2635.5,2635.3,0.552]
[1739362607539,6.61144715,2636.1,2635.3,0.552]
[1739362607735,1.645,2636.0,2635.5,3.2078]
[1739362607935,1.645,2636.0,2635.6,0.5746]
[1739362609639,1.6619,2636.3,2635.8,3.2078]
[1739362609940,1.645,2636.2,2635.8,3.2078]
[1739362610137,1.645,2636.2,2635.9,1.1526]
[1739362610337,1.645,2636.1,2635.9,1.1526]
[1739362613045,1.645,2636.1,2635.8,3.2078]
[1739362614844,1.645,2636.1,2635.9,0.595]
[1739362615048,1.1068,2636.3,2636.0,0.5726]
[1739362615239,1.644,2636.2,2636.0,0.5726]
[1739362616542,1.644,2636.2,2636.1,40.8]
[1739362617241,1.644,2636.2,2636.0,0.5726]
[1739362617640,1.644,2636.2,2636.0,41.3726]
[1739362618247,1.644,2636.2,2636.0,0.5726]
[1739362618636,1.1068,2636.3,2636.0,0.5726]
[1739362618842,2.7508,2636.3,2636.1,44.0078]
[1739362619842,2.7508,2636.3,2636.1,3.2078]
[1739362620347,2.7508,2636.3,2636.1,44.0078]
[1739362620950,2.7508,2636.3,2636.1,3.2078]
[1739362621343,2.1931,2636.3,2636.1,3.2078]
[1739362621537,2.1931,2636.3,2636.1,3.7941]
[1739362621739,2.1931,2636.3,2636.1,3.2078]
[1739362624549,0.5586,2636.6,2636.1,44.0078]
[1739362624845,2.7873,2636.6,2636.1,44.0078]
[1739362628257,2.7873,2636.6,2636.5,0.19168213]
[1739362637772,2.7873,2636.6,2636.1,3.2078]
[1739362637973,3.40364715,2636.4,2635.8,3.2078]
[1739362638270,3.40364715,2636.1,2635.8,3.2078]
[1739362638467,2.7456,2636.0,2635.8,44.0078]
[1739362638863,0.5744,2636.3,2635.8,44.0078]
[1739362639071,1.644,2636.2,2635.9,0.5638]
[1739362639269,1.644,2636.1,2636.0,0.5939]
[1739362641673,1.0985,2636.5,2636.0,0.5939]
[1739362641978,2.1934,2636.5,2636.1,3.7634]
[1739362643682,0.5525,2636.4,2636.1,3.7634]
[1739362644078,0.5525,2636.4,2636.1,3.2078]
[1739362644079,3.95614715,2636.4,2636.1,3.2078]
[1739362647490,3.95614715,2636.4,2635.8,44.0078]
[1739362647787,3.95614715,2636.4,2635.8,3.2078]
[1739362647972,3.40364715,2636.1,2635.8,3.2078]
[1739362648178,2.819,2636.0,2635.8,3.2078]
[1739362648481,0.5759,2635.9,2635.8,3.2078]
[1739362652180,0.5759,2635.9,2635.5,3.2078]
[1739362652381,3.40364715,2635.8,2635.5,3.2078]
[1739362654288,3.40364715,2635.8,2635.3,40.8]
[1739362654583,3.40364715,2635.8,2635.2,4.8882]
[1739362654784,3.40364715,2635.8,2635.2,4.3364]
[1739362654985,3.40364715,2635.8,2635.2,45.1364]
[1739362655583,3.40364715,2635.8,2635.2,4.3364]
[1739362656686,3.40364715,2635.5,2635.2,4.3364]
[1739362656889,2.2145,2635.4,2635.2,4.3364]
[1739362657092,2.7835,2635.4,2635.2,4.3364]
[1739362661192,2.2145,2635.4,2635.2,4.3364]
[1739362661383,1.644,2635.4,2635.2,4.3364]
[1739362663794,1.644,2635.4,2635.2,3.2078]
[1739362664094,1.7073,2635.3,2635.2,3.2078]
[1739362666394,1.644,2635.4,2635.2,3.2078]
[1739362666591,5.12534715,2635.8,2635.2,3.7758]
[1739362666790,1.644,2635.7,2635.2,3.7758]
[1739362670196,1.644,2635.7,2635.2,4.07720592]
[1739362671000,1.644,2635.7,2635.2,3.7758]
[1739362671001,2.2162,2635.7,2635.2,3.7758]
[1739362673603,3.40364715,2635.5,2635.2,3.7758]
[1739362673799,3.40364715,2635.5,2635.2,3.2078]
[1739362674007,0.5722,2635.4,2635.2,3.2078]
[1739362674304,2.2305,2635.3,2635.2,3.2078]
[1739362674696,1.644,2635.3,2635.2,3.2078]
[1739362675007,0.5722,2635.7,2635.2,3.7994]
[1739362675203,1.644,2635.6,2635.2,3.7994]
[1739362675502,0.5722,2635.7,2635.2,3.7994]
[1739362675703,1.644,2635.5,2635.2,3.7994]
[1739362678502,3.40364715,2636.1,2635.2,44.5994]
[1739362678709,1.644,2636.0,2635.6,3.2078]
[1739362679009,1.644,2636.0,2635.7,1.7331]
[1739362679398,1.644,2636.0,2635.7,1.1834]
[1739362679602,3.40364715,2635.8,2635.6,3.2078]
[1739362680105,1.1222,2635.7,2635.6,3.2078]
[1739362680410,1.1222,2635.7,2635.3,0.608]
[1739362680411,1.6905,2635.7,2635.3,0.608]
[1739362680610,3.40364715,2635.5,2635.2,3.2078]
[1739362684510,1.1222,2635.7,2635.2,3.2078]
[1739362684716,1.644,2635.6,2635.2,3.2078]
[1739362686209,3.40364715,2635.5,2635.2,3.2078]
[1739362687307,1.644,2635.6,2635.2,3.2078]
[1739362692515,3.40364715,2635.5,2635.2,3.2078]
[1739362692715,3.40364715,2635.5,2635.1,0.00570093]
[1739362692926,3.40364715,2635.2,2635.1,0.00570093]
[1739362693216,8.25544715,2635.2,2634.6,3.2078]
[1739362693422,3.40364715,2634.8,2634.6,3.2078]
[1739362693621,2.2165,2634.7,2634.6,3.2078]
[1739362694617,1.644,2634.7,2634.6,3.2078]
[1739362694824,0.00566452,2634.9,2634.6,3.2078]
[1739362695025,1.644,2634.8,2634.7,0.5791]
[1739362700622,1.644,2634.8,2634.6,3.2078]
[1739362700830,2.2435,2634.8,2634.6,3.2078]
[1739362702117,1.644,2634.8,2634.6,3.2078]
[1739362704224,0.5959,2634.7,2634.6,3.2078]
[1739362725334,0.00566452,2634.9,2634.6,3.2078]
[1739362725538,0.00566452,2634.9,2634.7,0.5834]
[1739362725740,1.64966452,2634.9,2634.7,1.7238]
[1739362728735,1.64966452,2634.9,2634.7,1.1613]
[1739362728936,3.40364715,2634.8,2634.6,3.2078]
[1739362729136,4.00024715,2634.8,2634.6,3.2078]
[1739362729432,4.58374715,2634.8,2634.6,3.2078]
[1739362733947,1.644,2634.7,2634.6,3.2078]
[1739362745453,2.2121,2634.7,2634.6,3.2078]
[1739362745948,2.2121,2634.7,2634.4,0.00569001]
[1739362746152,3.40364715,2634.5,2634.4,0.00569001]
[1739362750159,3.40364715,2634.5,2633.2,3.40364715]
[1739362750160,16.0150943,2634.5,2633.6,1.7724]
[1739362750457,16.0150943,2634.5,2633.0,40.8]
[1739362750458,3.40364715,2633.7,2633.0,40.8]
[1739362750660,1.644,2633.6,2633.3,0.6022]
[1739362750857,2.2251,2633.6,2633.3,0.6022]
[1739362751566,2.2251,2633.6,2633.2,0.00569001]
[1739362751858,2.2251,2633.6,2633.2,3.21349001]
[1739362753358,2.7867,2633.6,2633.2,3.21349001]
[1739362754259,2.7867,2633.6,2633.2,3.20349001]
[1739362754656,2.2251,2633.6,2633.2,3.20349001]
[1739362756264,1.644,2633.6,2633.2,3.20349001]
[1739362756665,1.644,2633.6,2633.3,40.8]
[1739362758771,3.40364715,2633.4,2633.2,3.20349001]
[1739362759162,0.5758,2633.3,2633.2,3.20349001]
[1739362761977,0.5946,2633.5,2633.2,3.20349001]
[1739362762176,0.5946,2633.5,2633.2,3.75969001]
[1739362763978,1.64969001,2633.6,2633.2,3.75969001]
[1739362764276,0.00569001,2633.6,2633.2,3.75969001]
[1739362764476,1.645,2633.5,2633.2,3.75969001]
[1739362765971,0.00569001,2633.6,2633.2,3.75969001]
[1739362766174,1.645,2633.5,2633.2,7.16333716]
[1739362767085,0.00569001,2633.6,2633.2,7.16333716]
[1739362767382,2.979,2633.8,2633.5,3.2078]
[1739362767582,1.645,2633.9,2633.6,0.601]
[1739362767773,1.645,2634.1,2633.8,3.2078]
[1739362769282,1.645,2634.1,2633.9,40.8]
[1739362769785,0.00569001,2634.2,2633.9,40.8]
[1739362770083,0.00569001,2634.2,2634.1,3.2078]
[1739362772183,0.00569001,2634.2,2634.1,3.7927]
[1739362773481,0.00569001,2634.2,2634.1,47.99634715]
[1739362773686,1.644,2634.6,2634.1,47.99634715]
[1739362773986,1.644,2634.6,2634.4,3.2078]
[1739362776685,1.644,2634.6,2634.5,0.5507]
[1739362779897,1.644,2634.6,2634.5,0.73788831]
[1739362780388,1.644,2634.6,2634.5,0.18718831]
[1739362780591,2.2447,2634.6,2634.5,0.18718831]
[1739362796503,2.2447,2634.6,2634.5,3.39498831]